bitfinex-derivatives/quotes_ETHF0:USTF0_20240917
["timestamp","ask_amount","ask_price","bid_price","bid_amount"]
[1726603202354,1.0797,2353.5,2353.1,0.42486]
[1726603202651,1.0797,2353.5,2353.0,3.63267]
[1726603202854,1.0797,2353.5,2353.0,3.2078]
[1726603203049,1.50449,2353.5,2353.0,3.63267]
[1726603203250,4.2875,2353.5,2352.9,5.1549]
[1726603203456,4.2875,2353.5,2352.9,5.57979]
[1726603203758,4.2875,2353.5,2352.9,5.57978]
[1726603203958,4.2875,2353.5,2352.9,5.57979]
[1726603204457,4.7123,2353.5,2353.0,0.42487]
[1726603204660,4.7123,2353.5,2353.0,3.63267]
[1726603204661,4.2875,2353.5,2353.0,3.63267]
[1726603204958,4.2875,2353.5,2352.8,1.0322]
[1726603205258,1.06229,2352.8,2352.0,4.08]
[1726603205465,3.2078,2353.2,2352.3,4.08]
[1726603205762,3.2078,2353.2,2352.7,0.42493]
[1726603205763,3.63265,2353.2,2352.7,0.42493]
[1726603205959,3.63265,2353.2,2352.9,4.08]
[1726603205960,3.2078,2353.2,2352.9,4.08]
[1726603206155,1.1323,2353.4,2352.9,4.08]
[1726603206355,1.1323,2353.4,2352.7,1.1093]
[1726603206655,1.1323,2353.4,2353.0,4.08]
[1726603206656,3.2078,2353.3,2353.0,4.08]
[1726603206857,4.2944,2353.6,2353.1,3.2078]
[1726603207056,0.42479,2353.5,2353.1,3.63266]
[1726603207259,4.71918,2353.6,2353.0,4.08]
[1726603207561,4.71918,2353.6,2352.9,0.42488]
[1726603207562,0.42481,2353.4,2352.9,0.42488]
[1726603207757,0.42482,2353.4,2352.9,0.42488]
[1726603207956,4.2944,2353.6,2352.8,3.2078]
[1726603207957,0.42485,2353.2,2352.8,3.63271]
[1726603208360,1.1323,2353.2,2352.5,3.2078]
[1726603208561,1.0912,2353.1,2352.5,0.42496]
[1726603208862,0.42492,2352.8,2352.4,4.71967]
[1726603209053,0.42491,2352.9,2352.5,0.42497]
[1726603210273,0.42491,2352.9,2352.5,0.42496]
[1726603210758,3.63269,2353.0,2352.6,0.42494]
[1726603211162,1.1323,2353.2,2352.7,7.2878]
[1726603211464,3.2078,2353.8,2353.0,7.2878]
[1726603211655,0.42469,2354.1,2353.3,7.2878]
[1726603211957,0.42466,2354.2,2353.9,0.42471]
[1726603212166,0.42467,2354.2,2353.9,0.42471]
[1726603212349,3.2078,2354.3,2354.0,4.248]
[1726603212550,3.2078,2355.0,2354.2,4.08]
[1726603212753,3.2078,2355.0,2354.9,4.50454]
[1726603212949,3.2078,2355.0,2354.9,0.42454]
[1726603213155,3.2078,2355.0,2354.9,4.67094]
[1726603213653,3.2078,2355.0,2354.4,8.3387]
[1726603214048,3.2078,2355.0,2354.6,0.42458]
[1726603214049,0.42454,2354.9,2354.6,0.42458]
[1726603214253,0.42469,2354.1,2353.6,0.42476]
[1726603214454,3.2078,2354.4,2354.0,0.42468]
[1726603214762,0.42464,2354.4,2354.0,4.08]
[1726603214951,3.2078,2354.6,2354.0,4.08]
[1726603215155,3.2078,2354.6,2354.0,7.2878]
[1726603215360,2.1743,2354.8,2354.5,0.4246]
[1726603215662,2.1743,2354.8,2354.2,4.08]
[1726603215663,2.1743,2354.8,2354.4,0.42462]
[1726603215958,2.1743,2354.8,2353.7,1.06187]
[1726603215959,0.42464,2354.4,2353.4,4.31841521]
[1726603216161,1.1174,2354.3,2353.6,1.0324]
[1726603216358,1.1174,2354.3,2353.9,0.42471]
[1726603216561,1.1174,2354.3,2353.8,0.42473]
[1726603216755,1.54204,2354.3,2353.7,3.63255]
[1726603216958,3.2078,2354.2,2353.7,0.42475]
[1726603217262,3.2078,2354.2,2353.4,3.2078]
[1726603217263,0.42469,2354.1,2353.4,4.08]
[1726603217460,1.47829,2354.1,2353.5,0.42478]
[1726603217665,3.63251,2354.0,2353.4,4.5048]
[1726603217960,3.63251,2354.0,2353.0,3.2078]
[1726603217961,3.2078,2354.0,2353.0,3.2078]
[1726603218162,3.2078,2353.8,2353.2,0.42482]
[1726603218368,0.42476,2353.7,2353.1,4.08]
[1726603218667,1.49526,2353.7,2353.2,0.42484]
[1726603219059,1.0705,2353.7,2353.1,4.08]
[1726603219259,0.4248,2353.5,2353.0,3.63267]
[1726603219461,1.0705,2353.7,2353.1,4.08]
[1726603219760,1.49526,2353.7,2353.2,0.42483]
[1726603219966,0.42477,2353.6,2353.2,0.42483]
[1726603220153,0.42477,2353.6,2353.1,4.50485]
[1726603220354,0.42477,2353.6,2353.2,0.42483]
[1726603220564,1.0705,2353.7,2353.2,0.42483]
[1726603220565,1.49526,2353.7,2353.2,0.42483]
[1726603220866,0.42477,2353.6,2353.2,0.42483]
[1726603221260,0.42477,2353.6,2353.1,4.08]
[1726603221462,0.42482,2353.4,2353.0,3.2078]
[1726603221758,0.42483,2353.3,2353.0,3.2078]
[1726603221964,0.42482,2353.4,2353.0,3.63268]
[1726603222158,3.2078,2353.5,2353.0,3.2078]
[1726603222363,0.42486,2353.1,2353.0,3.2078]
[1726603222865,4.67446,2353.1,2353.0,3.2078]
[1726603223073,4.2496,2353.1,2353.0,3.2078]
[1726603223361,4.67446,2353.1,2353.0,3.2078]
[1726603223664,4.67446,2353.1,2352.8,0.42491]
[1726603223665,5.74856,2353.1,2352.8,0.42491]
[1726603223862,1.49896,2353.1,2352.8,0.42491]
[1726603224264,1.0741,2353.1,2352.7,0.42492]
[1726603224458,0.42488,2353.0,2352.7,0.42492]
[1726603224666,0.42488,2353.0,2352.8,0.42491]
[1726603224966,0.42488,2353.0,2352.7,0.42492]
[1726603225165,0.42488,2353.0,2352.8,0.42491]
[1726603225557,0.42488,2353.0,2352.5,5.1142]
[1726603225558,0.42489,2353.0,2352.5,1.0342]
[1726603225759,0.42489,2353.0,2352.4,3.2078]
[1726603225760,3.2078,2352.9,2352.1,1.1278]
[1726603225959,3.2078,2352.9,2352.4,0.42498]
[1726603226172,0.42494,2352.7,2352.5,0.42496]
[1726603226366,1.0741,2353.1,2352.6,4.08]
[1726603226669,1.06184,2353.8,2352.9,7.2878]
[1726603226969,0.42477,2353.7,2353.5,4.50479]
[1726603227161,3.20958,2354.0,2353.5,7.2878]
[1726603227162,2.2076,2354.0,2353.5,7.2878]
[1726603227359,2.2076,2354.0,2353.8,0.42473]
[1726603227560,2.2076,2354.0,2353.9,0.42472]
[1726603227765,2.2076,2354.0,2353.5,7.2878]
[1726603227766,0.42472,2353.9,2353.7,0.42474]
[1726603227965,2.2076,2354.0,2353.6,0.42475]
[1726603228180,3.26937,2354.0,2353.5,0.42477]
[1726603228372,3.26937,2354.0,2353.2,7.2878]
[1726603228373,0.42478,2353.6,2353.4,0.42479]
[1726603228668,0.42476,2353.7,2353.5,0.42479]
[1726603228859,0.42476,2353.7,2353.2,7.2878]
[1726603228860,0.42478,2353.6,2353.4,0.4248]
[1726603229260,0.42478,2353.6,2353.5,0.42479]
[1726603229668,2.2076,2354.0,2353.5,0.42478]
[1726603229867,4.42484536,2354.9,2353.5,0.42478]
[1726603229868,4.2649,2354.5,2353.8,4.08]
[1726603230068,4.2649,2354.5,2354.1,4.50467]
[1726603230069,0.42465,2354.3,2354.1,4.50467]
[1726603230370,1.0359,2354.4,2354.1,4.08]
[1726603230571,3.2078,2354.5,2354.1,4.08]
[1726603230965,0.42463,2354.4,2354.1,4.50467]
[1726603231375,0.42463,2354.4,2354.1,4.50466]
[1726603231871,1.06157,2354.4,2353.6,1.08]
[1726603232172,0.42469,2354.1,2353.8,0.42472]
[1726603232472,0.42469,2354.1,2353.6,1.08]
[1726603232675,0.4247,2354.0,2353.8,0.42473]
[1726603232874,0.42471,2354.0,2353.7,3.2078]
[1726603233071,3.2078,2354.2,2353.6,1.08]
[1726603233072,0.4247,2354.1,2353.8,0.42472]
[1726603233769,0.4247,2354.1,2353.9,0.42471]
[1726603233973,3.63248,2354.2,2353.9,0.42471]
[1726603234371,3.63248,2354.2,2352.6,0.42494]
[1726603234372,0.42491,2352.9,2352.6,0.42494]
[1726603234573,2.12362,2353.9,2352.5,1.1076]
[1726603234574,1.06219,2353.1,2352.5,1.1076]
[1726603234777,0.42491,2352.9,2352.6,0.42494]
[1726603235279,1.1147,2353.1,2352.5,4.3154]
[1726603235572,1.1147,2353.1,2352.6,0.42495]
[1726603235573,0.42491,2352.9,2352.6,0.42495]
[1726603235765,1.1147,2353.1,2352.6,0.42495]
[1726603235963,1.06221,2353.0,2352.5,1.53257]
[1726603236168,0.4249,2352.9,2352.6,0.42495]
[1726603236374,0.4249,2352.9,2352.5,1.1076]
[1726603236375,0.42492,2352.8,2352.5,1.1076]
[1726603236777,0.42491,2352.9,2352.6,0.42494]
[1726603237170,0.42492,2352.8,2352.6,0.42494]
[1726603238184,3.2078,2352.7,2352.4,1.26497654]
[1726603238377,5.1947,2353.1,2352.4,1.26497654]
[1726603238378,1.06225,2352.9,2352.4,1.26497654]
[1726603238584,4.3225,2353.1,2352.4,1.26497654]
[1726603238886,0.42493,2352.8,2352.4,1.26497654]
[1726603239177,5.38469,2353.1,2352.4,1.26497654]
[1726603239475,0.42496,2352.6,2352.4,1.26497654]
[1726603239668,3.63277,2352.5,2352.4,1.26497654]
[1726603239875,4.75757,2352.5,2352.4,1.26497654]
[1726603240074,9.00877,2352.5,2352.4,1.26497654]
[1726603241782,9.00877,2352.5,2351.6,1.0639]
[1726603241783,14.5838,2352.5,2351.6,1.0639]
[1726603241982,0.42509,2351.9,2351.6,1.0639]
[1726603242182,0.42511,2351.8,2351.6,1.0639]
[1726603242570,0.42509,2351.9,2351.6,1.0639]
[1726603243484,3.2078,2352.1,2351.6,1.0639]
[1726603243674,0.42507,2352.0,2351.6,1.0639]
[1726603244383,0.42508,2351.9,2351.6,1.0639]
[1726603246084,0.4251,2351.8,2351.6,1.0639]
[1726603246384,0.42509,2351.9,2351.6,1.0639]
[1726603246577,0.42507,2352.0,2351.6,1.48903]
[1726603246782,3.2078,2352.1,2351.6,1.48903]
[1726603247298,3.2078,2352.1,2351.5,0.42514]
[1726603247579,0.4251,2351.8,2351.5,0.42514]
[1726603248185,3.2078,2352.1,2351.4,1.109]
[1726603248483,0.42507,2352.0,2351.4,8.3968]
[1726603248673,0.42504,2352.2,2351.9,0.42507]
[1726603248875,0.42504,2352.2,2351.4,8.60935917]
[1726603248876,1.1248,2352.5,2351.7,7.2878]
[1726603249074,3.2078,2353.0,2352.3,4.08]
[1726603249280,4.27001,2353.0,2352.4,0.42497]
[1726603249788,0.42491,2352.9,2352.6,0.42495]
[1726603250089,0.42483,2353.3,2353.0,0.42486]
[1726603250290,0.42485,2353.2,2353.0,0.42486]
[1726603250486,0.42486,2353.1,2352.9,0.42489]
[1726603250698,3.2078,2353.4,2352.7,2.0779]
[1726603250699,0.42491,2352.8,2352.7,2.0779]
[1726603250880,1.073,2353.5,2352.7,2.0779]
[1726603250881,3.2078,2353.1,2352.7,2.0779]
[1726603251089,3.2078,2353.1,2352.7,2.50283]
[1726603251090,0.42491,2352.9,2352.7,2.50283]
[1726603251397,0.42491,2352.8,2352.7,2.0779]
[1726603251577,0.42491,2352.8,2352.5,0.42496]
[1726603251781,0.42493,2352.7,2352.3,1.0313]
[1726603251980,1.4849,2352.9,2352.4,0.42498]
[1726603252186,3.2078,2352.5,2352.1,3.2078]
[1726603252387,3.2078,2352.5,2352.3,0.425]
[1726603252388,3.63278,2352.5,2352.3,0.425]
[1726603252592,0.42502,2352.3,2352.1,0.42504]
[1726603254088,0.425,2352.4,2352.2,0.42501]
[1726603254291,3.2078,2352.5,2352.2,0.42501]
[1726603254479,0.425,2352.4,2352.2,0.42501]
[1726603254681,0.425,2352.3,2352.2,0.42501]
[1726603255788,0.42501,2352.3,2352.2,0.42502]
[1726603256182,0.42499,2352.4,2351.9,1.0313]
[1726603256390,0.42499,2352.4,2352.2,0.42501]
[1726603256689,3.2078,2352.5,2351.9,2.09399]
[1726603256895,1.06,2352.9,2352.8,0.42491]
[1726603256896,1.4849,2352.9,2352.8,0.42491]
[1726603257191,3.2078,2353.0,2352.9,0.4249]
[1726603258184,1.0489,2353.3,2353.0,0.42487]
[1726603258383,0.42486,2353.1,2352.9,0.42488]
[1726603258585,0.42488,2353.0,2352.6,1.06238]
[1726603258789,0.42488,2353.0,2352.9,0.42489]
[1726603258995,1.06215,2353.2,2352.4,3.2078]
[1726603259183,0.42508,2351.9,2351.6,3.53413189]
[1726603259385,0.42508,2351.9,2351.4,1.1188]
[1726603259386,3.2078,2352.4,2351.4,1.1188]
[1726603259688,1.47392,2352.3,2351.6,3.2078]
[1726603259887,1.0489,2352.3,2351.6,3.2078]
[1726603260088,1.0489,2352.3,2351.6,3.63293]
[1726603260690,1.0489,2352.3,2351.6,3.2078]
[1726603261294,2.0746,2352.9,2351.4,1.1188]
[1726603261295,1.0441,2352.9,2352.2,3.2078]
[1726603261495,4.2505,2353.0,2352.3,1.0726]
[1726603261698,4.2505,2353.0,2352.3,5.3027]
[1726603263186,1.0427,2353.0,2352.3,5.3027]
[1726603263390,4.2505,2353.0,2352.3,5.3027]
[1726603263594,4.2505,2353.0,2351.7,0.32902849]
[1726603263595,4.59,2352.4,2351.6,0.61870469]
[1726603263788,3.2078,2352.1,2351.5,3.2078]
[1726603263990,3.2078,2352.1,2351.4,1.1035]
[1726603264505,3.2078,2351.8,2351.4,1.1035]
[1726603267104,5.341,2352.3,2351.6,0.42513]
[1726603267399,3.2078,2351.7,2350.8,3.2078]
[1726603267602,3.63292,2351.7,2350.9,1.0834]
[1726603267799,3.2078,2351.7,2350.9,1.50866]
[1726603268100,3.63291,2351.7,2350.9,1.50866]
[1726603268301,4.70771,2351.7,2350.9,1.50866]
[1726603269003,4.70771,2351.7,2351.0,0.42523]
[1726603269004,4.2826,2351.7,2351.0,0.42523]
[1726603269504,3.2078,2351.4,2350.9,1.0834]
[1726603269903,3.2078,2351.4,2350.8,1.1137]
[1726603270103,3.63297,2351.4,2350.8,1.1137]
[1726603270597,3.2078,2351.4,2350.8,1.1137]
[1726603270903,3.63297,2351.4,2350.8,1.1137]
[1726603271299,0.4252,2351.3,2350.8,1.1137]
[1726603271500,3.2078,2351.5,2350.4,8.836]
[1726603271706,3.63301,2351.2,2350.6,0.4253]
[1726603272608,3.633,2351.2,2350.6,0.4253]
[1726603272906,0.42522,2351.1,2350.5,0.42532]
[1726603273216,1.1284,2351.1,2350.4,9.0479374]
[1726603273598,1.1284,2351.1,2350.4,8.836]
[1726603273906,1.1284,2351.1,2350.4,9.04740569]
[1726603274101,1.1284,2351.1,2350.8,0.42527]
[1726603274499,4.76143,2351.1,2350.6,0.4253]
[1726603275807,0.42524,2351.0,2350.6,0.4253]
[1726603276306,4.3362,2351.1,2350.6,0.4253]
[1726603276307,4.76143,2351.1,2350.6,0.4253]
[1726603276604,4.3362,2351.1,2350.6,0.4253]
[1726603276810,3.2078,2350.8,2350.4,1.46353]
[1726603277108,0.42527,2350.9,2350.5,0.42532]
[1726603277699,0.42528,2350.8,2350.5,0.42532]
[1726603277899,1.0935,2351.0,2350.4,4.246]
[1726603278099,1.0935,2351.0,2350.7,0.42528]
[1726603278499,1.51874,2351.0,2350.7,0.42528]
[1726603278706,3.2078,2351.1,2351.0,0.42524]
[1726603278896,0.42521,2351.2,2350.9,0.42525]
[1726603279099,3.2078,2351.2,2350.8,0.42526]
[1726603279303,3.2078,2351.2,2350.4,1.0382]
[1726603279603,0.42526,2350.9,2350.6,0.4253]
[1726603279804,0.42528,2350.8,2350.5,0.42532]
[1726603280209,3.2078,2350.9,2350.5,0.42533]
[1726603280400,0.4253,2350.7,2350.4,1.46354]
[1726603280597,0.4253,2350.7,2350.4,1.0382]
[1726603280801,0.4253,2350.7,2350.4,1.46354]
[1726603281010,0.42531,2350.6,2350.4,1.0382]
[1726603281310,0.42531,2350.6,2350.4,0.42535]
[1726603281507,0.42531,2350.6,2350.3,1.065]
[1726603281806,0.42531,2350.6,2350.4,0.42535]
[1726603282005,3.2078,2350.6,2350.2,0.42537]
[1726603282204,0.42536,2350.4,2350.2,0.42537]
[1726603282604,0.42534,2350.5,2350.3,0.42536]
[1726603282907,3.63312,2350.6,2350.4,0.42534]
[1726603283110,2.116,2350.8,2350.2,1.06347]
[1726603283305,2.54128,2350.8,2350.6,0.42531]
[1726603283506,2.116,2350.8,2350.3,3.2078]
[1726603283712,2.116,2350.8,2350.1,1.0265]
[1726603284014,0.42531,2350.6,2350.4,0.42534]
[1726603284210,0.42531,2350.6,2350.1,1.0265]
[1726603284211,0.4253,2350.7,2350.5,0.42532]
[1726603284910,0.4253,2350.7,2350.1,2.08999]
[1726603284911,0.42531,2350.6,2350.4,0.42534]
[1726603285210,2.116,2350.8,2350.1,4.2343]
[1726603285518,0.42534,2350.5,2350.3,0.42535]
[1726603285909,0.42532,2350.6,2350.1,4.2343]
[1726603286112,0.42532,2350.6,2350.4,0.42534]
[1726603286614,2.116,2350.8,2350.5,0.42533]
[1726603286913,0.42525,2351.0,2350.4,3.2078]
[1726603287117,0.42526,2350.9,2350.8,0.42527]
[1726603287309,0.42526,2350.9,2350.5,1.06331]
[1726603287509,3.2078,2350.9,2350.6,0.4253]
[1726603287706,0.42529,2350.8,2350.6,0.4253]
[1726603287910,0.42529,2350.7,2350.6,0.4253]
[1726603288109,0.4253,2350.7,2350.5,0.42532]
[1726603288317,2.12243,2350.8,2350.5,0.42532]
[1726603288520,0.42531,2350.7,2350.6,0.42531]
[1726603288707,1.0592,2350.8,2350.7,0.42529]
[1726603291212,1.06306,2351.1,2350.5,1.06332]
[1726603291416,1.1276,2351.1,2351.0,0.42524]
[1726603292018,3.2078,2351.5,2351.4,0.42517]
[1726603292227,1.06267,2352.0,2351.4,4.46619699]
[1726603292228,1.1276,2352.0,2351.4,4.46619699]
[1726603292415,1.55266,2352.0,2351.8,0.42508]
[1726603292609,1.55266,2352.0,2351.7,0.4251]
[1726603292816,1.1276,2352.0,2351.8,0.42509]
[1726603293215,1.1276,2352.0,2351.8,0.42508]
[1726603293422,1.1276,2352.0,2351.6,3.2078]
[1726603293618,1.1276,2352.0,2351.9,0.42508]
[1726603293811,1.06223,2353.0,2351.9,3.2078]
[1726603293812,5.75555,2352.6,2351.9,3.2078]
[1726603294016,6.3943,2352.6,2351.6,3.2078]
[1726603294319,3.63279,2352.4,2352.0,0.42505]
[1726603294520,3.1865,2352.6,2352.1,0.42503]
[1726603294521,0.42498,2352.5,2352.1,0.42503]
[1726603294924,3.2078,2352.4,2352.1,0.42503]
[1726603295720,0.42501,2352.3,2351.9,0.42507]
[1726603296029,0.42504,2352.1,2351.7,1.4739]
[1726603296224,1.0637,2352.0,2351.7,1.4739]
[1726603296626,1.48877,2352.0,2351.6,0.42512]
[1726603298437,1.48877,2352.0,2351.7,0.4251]
[1726603298438,1.48876,2352.0,2351.7,0.4251]
[1726603298626,1.0637,2352.0,2351.7,0.4251]
[1726603299133,1.0637,2352.0,2351.8,0.42509]
[1726603299326,3.2078,2352.4,2352.1,0.42504]
[1726603299529,3.18523,2352.6,2352.4,0.42499]
[1726603299530,1.0548,2352.5,2352.4,0.42499]
[1726603300233,1.0548,2352.5,2352.1,2.2159]
[1726603300234,1.1131,2353.0,2352.3,3.2078]
[1726603300432,1.1131,2353.0,2352.4,0.42499]
[1726603300433,0.42492,2352.8,2352.4,0.42499]
[1726603300631,1.0548,2352.9,2352.6,0.42494]
[1726603300823,1.0548,2352.9,2352.3,3.2078]
[1726603300824,1.47971,2352.9,2352.5,0.42496]
[1726603301129,1.0548,2352.9,2352.6,0.42494]
[1726603301724,1.4797,2352.9,2352.6,0.42494]
[1726603301924,1.0548,2352.9,2352.6,0.42494]
[1726603302428,1.0548,2352.9,2352.6,3.2078]
[1726603302821,1.0548,2352.9,2352.7,0.42493]
[1726603303222,1.0548,2352.9,2352.1,4.34437]
[1726603303223,4.09,2352.8,2352.1,3.2818]
[1726603303430,1.0548,2352.9,2352.1,2.2159]
[1726603303622,5.2889,2352.9,2352.1,2.2159]
[1726603303825,3.2078,2353.5,2352.8,4.09]
[1726603304032,3.2078,2353.5,2353.2,0.42483]
[1726603304331,3.2078,2353.5,2353.2,0.42484]
[1726603304532,3.2078,2353.5,2352.9,5.3001]
[1726603304533,3.2078,2353.5,2353.1,0.42485]
[1726603305030,3.2078,2353.5,2352.9,5.3001]
[1726603305236,3.2078,2353.5,2352.9,2.0923]
[1726603305435,0.42483,2353.3,2352.9,2.51719]
[1726603305735,1.0243,2353.2,2352.9,1.0388]
[1726603306033,1.0243,2353.2,2352.8,0.42491]
[1726603306034,4.09,2353.0,2351.8,7.3868]
[1726603306329,3.2078,2352.9,2352.1,3.2078]
[1726603306533,3.2078,2352.9,2352.2,0.42502]
[1726603306927,3.2078,2352.9,2352.1,3.2078]
[1726603307235,3.2078,2352.9,2352.4,3.63278]
[1726603307729,3.2078,2352.9,2352.5,1.0769]
[1726603307931,3.2078,2352.9,2352.5,2.1049]
[1726603308437,1.0835,2353.1,2352.5,2.52986]
[1726603308734,4.2913,2353.1,2352.5,2.1049]
[1726603309033,4.2913,2353.1,2352.5,1.0769]
[1726603309034,3.2078,2352.8,2352.5,1.0769]
[1726603309939,3.2078,2352.8,2352.3,0.425]
[1726603310432,3.2078,2352.8,2352.1,2.0819]
[1726603310633,3.63272,2352.8,2352.1,2.50693]
[1726603310834,3.2078,2352.8,2352.1,2.0819]
[1726603311033,3.2078,2352.8,2352.1,2.50693]
[1726603311034,3.63272,2352.8,2352.1,2.50693]
[1726603311239,3.2078,2352.8,2352.0,3.2078]
[1726603311537,1.0835,2353.1,2351.7,0.4251]
[1726603311538,3.2078,2352.4,2351.7,0.4251]
[1726603311731,1.0679,2352.3,2351.8,0.42509]
[1726603312130,1.0679,2352.3,2351.6,7.2978]
[1726603312131,4.2757,2352.7,2351.9,7.2978]
[1726603312334,1.0679,2352.6,2352.1,0.42503]
[1726603312634,1.0679,2352.6,2352.2,0.42502]
[1726603312835,1.0679,2352.6,2352.1,0.42503]
[1726603313032,1.0679,2352.6,2352.0,2.1948]
[1726603313232,0.42489,2353.0,2352.4,4.09]
[1726603313435,0.42489,2353.0,2352.4,4.51498]
[1726603313839,0.42489,2353.0,2352.4,0.42498]
[1726603314538,3.2078,2352.8,2352.4,0.42498]
[1726603315037,3.2078,2352.8,2352.0,2.1948]
[1726603315038,0.425,2352.4,2352.0,2.1948]
[1726603315237,1.0679,2353.2,2352.0,2.1948]
[1726603315238,3.63278,2352.5,2352.0,2.1948]
[1726603315433,0.42499,2352.4,2352.0,2.1948]
[1726603315760,1.0598,2352.5,2352.1,0.42503]
[1726603316038,1.0598,2352.5,2352.0,2.1948]
[1726603316039,1.0598,2352.5,2352.0,5.4026]
[1726603316230,3.2078,2352.8,2352.2,4.09]
[1726603316430,3.2078,2352.8,2352.3,0.425]
[1726603316633,3.2078,2352.8,2352.2,0.42502]
[1726603316839,0.42494,2352.7,2352.2,0.42502]
[1726603317046,0.42496,2352.6,2352.0,2.1948]
[1726603317234,3.63273,2352.8,2352.2,0.42501]
[1726603317440,3.63273,2352.8,2352.3,0.42499]
[1726603317441,3.2078,2352.8,2352.3,0.42499]
[1726603317734,3.2078,2352.8,2352.0,5.4026]
[1726603317735,3.2078,2352.8,2352.0,6.4582]
[1726603317939,3.63272,2352.8,2352.4,0.42499]
[1726603318134,3.2078,2352.8,2352.4,0.42499]
[1726603318845,3.2078,2352.8,2352.0,6.4582]
[1726603318846,3.2078,2352.5,2352.0,5.4026]
[1726603319157,4.34886,2353.1,2352.2,0.42501]
[1726603319158,0.42494,2352.7,2352.2,0.42501]
[1726603320244,3.2078,2352.8,2352.1,0.42503]
[1726603320245,0.42495,2352.6,2352.1,0.42503]
[1726603320455,0.42499,2352.4,2352.0,2.1948]
[1726603320745,3.2078,2352.3,2351.7,3.2078]
[1726603320937,3.63281,2352.3,2351.8,0.42508]
[1726603321244,1.4718,2352.4,2351.9,0.42507]
[1726603321635,1.4718,2352.4,2351.7,3.2078]
[1726603321636,3.2078,2352.3,2351.7,3.2078]
[1726603321842,3.63282,2352.3,2351.8,0.42509]
[1726603322048,0.42502,2352.2,2351.7,3.6329]
[1726603322739,3.63282,2352.3,2351.8,0.42509]
[1726603322944,3.63282,2352.3,2351.7,3.2078]
[1726603322945,0.42507,2352.0,2351.7,3.2078]
[1726603323142,0.42511,2351.7,2351.4,3.2078]
[1726603323338,1.0202,2351.9,2351.4,3.2078]
[1726603323646,1.0202,2351.9,2351.1,1.52601]
[1726603323647,3.2078,2351.7,2351.1,1.52601]
[1726603323943,3.2078,2351.7,2350.7,4.60428]
[1726603323944,0.42522,2351.2,2350.7,4.60428]
[1726603324133,0.42523,2351.1,2350.7,0.42529]
[1726603324335,0.42523,2351.1,2350.5,0.9988]
[1726603324336,3.2078,2351.1,2350.5,0.9988]
[1726603324536,0.42525,2351.0,2350.6,0.42531]
[1726603324838,0.42526,2350.9,2350.5,0.9988]
[1726603325042,3.2078,2351.1,2350.5,0.9988]
[1726603325043,0.42528,2350.8,2350.5,0.9988]
[1726603325248,0.42528,2350.8,2350.4,0.42534]
[1726603325840,3.2078,2351.1,2350.4,0.42534]
[1726603326141,0.42527,2350.9,2350.4,0.42534]
[1726603326347,0.42526,2350.9,2350.5,0.42532]
[1726603326649,3.2078,2351.1,2350.3,3.2078]
[1726603326946,0.42526,2350.9,2350.5,0.42532]
[1726603329145,0.42525,2351.0,2350.6,0.4253]
[1726603329344,0.42526,2350.9,2350.6,0.4253]
[1726603329541,0.42525,2351.0,2350.6,0.4253]
[1726603329734,4.09,2351.7,2350.8,3.2078]
[1726603329735,1.06279,2351.7,2350.8,3.2078]
[1726603329938,0.42516,2351.5,2351.1,0.42522]
[1726603330149,0.42516,2351.5,2351.2,0.4252]
[1726603330337,0.42516,2351.5,2350.9,1.0884]
[1726603330652,0.42516,2351.5,2351.2,0.4252]
[1726603330838,0.42518,2351.4,2351.0,4.2528]
[1726603331042,1.0385,2352.3,2351.3,3.2078]
[1726603331338,1.0385,2352.3,2352.0,3.2078]
[1726603331542,4.2195,2352.5,2352.1,0.42503]
[1726603331745,4.2195,2352.5,2352.2,0.42502]
[1726603331746,4.64447,2352.5,2352.2,0.42502]
[1726603332056,4.2195,2352.5,2352.0,0.42505]
[1726603332259,4.2195,2352.5,2351.9,0.42507]
[1726603332639,4.2195,2352.5,2351.7,1.0291]
[1726603332850,0.42507,2352.0,2351.4,4.244]
[1726603333149,0.42508,2351.9,2351.6,0.42512]
[1726603333451,3.2078,2352.2,2351.5,0.42514]
[1726603333452,0.4251,2351.8,2351.5,0.42514]
[1726603333647,1.06254,2352.3,2351.4,3.2078]
[1726603333838,0.42506,2352.0,2351.7,0.42511]
[1726603334338,0.42505,2352.1,2351.8,0.42509]
[1726603334547,0.42505,2352.1,2351.4,3.2078]
[1726603334548,0.42507,2352.0,2351.7,0.4251]
[1726603334749,1.06254,2352.3,2351.4,3.2078]
[1726603334947,3.2078,2352.2,2351.7,0.4251]
[1726603335250,1.0009,2352.1,2351.6,0.42513]
[1726603335452,1.0009,2352.1,2351.4,3.2078]
[1726603335453,4.2705,2351.9,2351.4,0.42517]
[1726603335648,4.2705,2351.9,2351.2,1.0793]
[1726603335649,0.42512,2351.7,2351.2,1.0793]
[1726603335849,2.06637,2351.8,2351.2,1.0793]
[1726603336058,0.42514,2351.6,2351.2,1.0793]
[1726603336248,0.42515,2351.5,2351.2,1.0793]
[1726603336554,0.42514,2351.6,2351.3,0.42517]
[1726603336853,2.06637,2351.8,2350.5,1.42129073]
[1726603336854,1.0036,2351.8,2351.1,3.2078]
[1726603337048,3.2078,2351.4,2350.3,1.0825]
[1726603337254,3.2078,2350.9,2350.3,1.0825]
[1726603337455,3.2078,2350.9,2350.4,0.42535]
[1726603337757,1.49323,2351.1,2350.5,0.42533]